bitfinex/quotes_SOLUSD_20240921
["timestamp","ask_amount","ask_price","bid_price","bid_amount"]
[1726958541738,6.7308,148.57,148.52,0.12549]
[1726958541935,6.7308,148.57,148.52,23.776884]
[1726958542139,6.7305,148.58,148.53,6.7325]
[1726958548769,1.68301536,148.57,148.52,6.733]
[1726958549567,0.12549,148.59,148.52,6.733]
[1726958550344,6.7313,148.56,148.52,6.733]
[1726958561853,1.68316923,148.55,148.5,6.7338]
[1726958563272,6.7322,148.54,148.5,6.7338]
[1726958563460,1.68338629,148.53,148.5,6.7338]
[1726958564167,6.7322,148.54,148.5,6.7338]
[1726958564773,6.7322,148.54,148.49,6.7343]
[1726958564985,1.68341867,148.53,148.49,6.7343]
[1726958565281,8.41611867,148.53,148.49,6.7342]
[1726958565974,1.68354359,148.52,148.49,6.7342]
[1726958567558,6.7327,148.53,148.49,6.7342]
[1726958567775,6.7322,148.54,148.5,6.7339]
[1726958568459,6.7318,148.55,148.5,6.7339]
[1726958569177,23.44971093,148.56,148.51,1.34666716]
[1726958569369,6.96381093,148.56,148.51,13.65937139]
[1726958569567,83.27257574,148.59,148.51,13.65937139]
[1726958569867,6.7309,148.57,148.52,6.7327]
[1726958573371,1.68302894,148.56,148.52,6.7327]
[1726958573982,6.7309,148.57,148.52,6.7327]
[1726958588911,6.7313,148.56,148.52,6.7327]
[1726958589209,1.68302937,148.56,148.49,6.7343]
[1726958589595,6.97205182,148.55,148.49,6.7343]
[1726958589769,1.68344026,148.54,148.49,6.7343]
[1726958589977,6.97205182,148.55,148.49,6.7343]
[1726958590376,6.7326,148.53,148.49,6.7343]
[1726958591795,1.68343818,148.52,148.49,6.7343]
[1726958592528,6.7326,148.53,148.49,6.7343]
[1726958603712,6.7323,148.54,148.49,6.7343]
[1726958610715,6.97205182,148.55,148.49,16.8355]
[1726958610920,6.97205182,148.55,148.52,6.7329]
[1726958611217,6.7308,148.57,148.52,23.5654]
[1726958613992,1.68316369,148.56,148.51,6.7335]
[1726958614188,6.7325,148.54,148.49,30.2065]
[1726958614407,1.68339461,148.53,148.49,30.2065]
[1726958615002,1.68339461,148.53,148.46,16.8389]
[1726958615403,1.6836705,148.52,148.46,16.8389]
[1726958616413,6.7331,148.52,148.47,6.7352]
[1726958616611,6.7331,148.52,148.48,6.7348]
[1726958616819,6.7327,148.53,148.48,6.7348]
[1726958620519,6.7327,148.53,148.49,6.7343]
[1726958620697,6.7322,148.54,148.49,8.08105288]
[1726958620900,6.7322,148.54,148.49,6.7343]
[1726958622008,1.68341919,148.53,148.49,6.7343]
[1726958624218,6.7322,148.54,148.49,6.7343]
[1726958626523,1.68341874,148.53,148.49,6.7343]
[1726958628426,8.41601874,148.53,148.49,6.7343]
[1726958628624,6.7326,148.53,148.49,6.7343]
[1726958629631,1.68341774,148.52,148.48,23.5713]
[1726958629920,8.41651774,148.52,148.48,23.5713]
[1726958630127,1.68358518,148.51,148.48,23.5713]
[1726958632741,6.7331,148.52,148.48,23.5713]
[1726958633840,8.4166744,148.52,148.48,23.5713]
[1726958635718,1.80906247,148.51,148.44,0.2521467]
[1726958635927,6.7357,148.47,148.44,0.2521467]
[1726958636121,1.68415318,148.46,148.44,0.2521467]
[1726958636318,8.41995318,148.46,148.44,0.2521467]
[1726958636642,16.95939,148.51,148.44,0.2521467]
[1726958636643,8.42044589,148.45,148.44,0.2521467]
[1726958637223,0.12549,148.51,148.44,0.2521467]
[1726958637416,6.7354,148.47,148.44,0.2521467]
[1726958637619,6.735,148.48,148.44,0.2521467]
[1726958638837,6.7344,148.49,148.44,0.2521467]
[1726958639140,1.68397778,148.48,148.44,0.2521467]
[1726958639442,1.68397778,148.48,148.44,6.9887467]
[1726958642219,6.7344,148.49,148.44,6.9887467]
[1726958642641,6.7344,148.49,148.45,6.7361]
[1726958643244,6.734,148.5,148.45,6.7361]
[1726958645452,1.68384346,148.49,148.45,6.7361]
[1726958646845,0.12549,148.5,148.44,0.2521467]
[1726958647035,6.7361,148.46,148.44,0.2521467]
[1726958650150,6.735,148.48,148.44,0.2521467]
[1726958650629,1.6840248,148.47,148.44,0.2521467]
[1726958660172,6.7362,148.45,148.44,0.2521467]
[1726958664684,8.4207235,148.45,148.44,0.2521467]
[1726958665656,6.7362,148.45,148.44,0.2521467]
[1726958666366,8.42072379,148.45,148.44,0.2521467]
[1726958673894,6.7362,148.45,148.44,0.2521467]
[1726958674675,6.98441502,148.46,148.44,0.2521467]
[1726958674989,16.837,148.49,148.44,0.2521467]
[1726958675180,23.83002892,148.49,148.44,0.2521467]
[1726958675581,1.68418722,148.48,148.44,0.2521467]
[1726958676290,6.7358,148.46,148.44,0.2521467]
[1726958686397,8.42038769,148.45,148.44,0.2521467]
[1726958686595,6.7362,148.45,148.44,0.2521467]
[1726958688317,6.99302892,148.49,148.44,6.9888467]
[1726958688599,6.7352,148.48,148.44,0.2521467]
[1726958692392,6.7358,148.46,148.44,0.2521467]
[1726958692599,1.6842578,148.45,148.44,0.2521467]
[1726958692797,6.7358,148.46,148.44,0.2521467]
[1726958700491,6.99302892,148.49,148.44,0.2521467]
[1726958700897,1.68399816,148.48,148.44,0.2521467]
[1726958701606,13.72752892,148.49,148.44,6.9888467]
[1726958702308,6.735,148.48,148.44,6.9888467]
[1726958703296,6.99302892,148.49,148.45,36.74058919]
[1726958703589,6.7331,148.52,148.48,12.31270423]
[1726958703895,6.7331,148.52,148.47,6.735]
[1726958714650,1.68358229,148.51,148.47,6.735]
[1726958715330,1.68358229,148.51,148.46,29.15150423]
[1726958715535,6.7362,148.45,148.44,0.2521467]
[1726958715842,6.7357,148.47,148.44,0.2521467]
[1726958716027,1.68418585,148.46,148.44,0.2521467]
[1726958716631,6.735,148.48,148.44,0.2521467]
[1726958718343,6.735,148.48,148.44,6.9886467]
[1726958719446,6.7345,148.49,148.44,6.9886467]
[1726958719757,21.88758721,148.51,148.46,6.7353]
[1726958719931,6.7341,148.5,148.46,6.7353]
[1726958723157,7.00231829,148.51,148.46,6.7353]
[1726958723341,6.734,148.5,148.46,6.7353]
[1726958728887,7.00231829,148.51,148.47,1.34695951]
[1726958729032,6.7326,148.53,148.48,6.7348]
[1726958729350,6.7326,148.53,148.49,8.08103229]
[1726958730055,6.7326,148.53,148.48,6.7348]
[1726958740843,6.7331,148.52,148.48,6.7348]
[1726958747379,6.7336,148.51,148.47,16.8377]
[1726958747950,6.734,148.5,148.47,16.8377]
[1726958760380,6.7336,148.51,148.47,16.8377]
[1726958760576,13.77201013,148.53,148.48,23.902374]
[1726958760762,13.77201013,148.53,148.49,13.65938123]
[1726958761092,6.7326,148.53,148.48,30.637174]
[1726958763083,6.7326,148.53,148.47,29.15040423]
[1726958763084,8.41651813,148.52,148.47,35.88560423]
[1726958763387,1.68348843,148.51,148.45,22.5433]
[1726958763594,6.7345,148.49,148.45,22.5433]
[1726958764485,6.7345,148.49,148.45,29.2794]
[1726958765987,1.17332951,148.53,148.45,29.2794]
[1726958766166,20.0,148.52,148.48,6.7345]
[1726958766484,1.17332951,148.53,148.47,6.7352]
[1726958767168,6.7331,148.52,148.47,6.7352]
[1726958767386,6.7331,148.52,148.48,30.511584]
[1726958772890,6.7327,148.53,148.48,30.511584]
[1726958775898,6.7327,148.53,148.49,6.7343]
[1726958781784,6.7327,148.53,148.48,6.86029]
[1726958789503,6.7327,148.53,148.49,0.53041746]
[1726958789712,7.02363539,148.54,148.5,35.67095413]
[1726958790082,6.7318,148.55,148.51,30.510284]
[1726958790282,6.7318,148.55,148.52,1.34640921]
[1726958791294,6.7318,148.55,148.51,30.510284]
[1726958796590,6.7318,148.55,148.51,31.8567249]
[1726958797089,6.7318,148.55,148.51,30.510284]
[1726958797790,6.7318,148.55,148.52,1.34644009]
[1726958799612,26.7313,148.56,148.52,1.34644009]
[1726958803216,26.7313,148.56,148.51,30.510284]
[1726958807118,6.732,148.55,148.5,45.5799]
[1726958807524,6.7322,148.54,148.5,45.5799]
[1726958807718,6.7327,148.53,148.5,22.0116]
[1726958811602,6.7321,148.54,148.5,28.7454]
[1726958811798,6.7321,148.54,148.5,22.0116]
[1726958812000,8.41537758,148.54,148.5,22.0116]
[1726958813522,6.7327,148.53,148.5,22.0116]
[1726958819203,1.68327514,148.52,148.46,39.1695]
[1726958819420,6.7343,148.5,148.46,39.1695]
[1726958820408,6.7349,148.48,148.46,22.3306]
[1726958820605,20.0,148.52,148.42,22.3306]
[1726958820808,6.7349,148.48,148.43,6.7371]
[1726958821206,6.7349,148.48,148.44,6.9887467]
[1726958821605,6.7345,148.49,148.44,6.9887467]
[1726958821813,6.7341,148.5,148.45,23.776884]
[1726958822015,6.7341,148.5,148.44,24.0290307]
[1726958822426,6.7341,148.5,148.45,0.12549]
[1726958823415,6.7341,148.5,148.46,6.7357]
[1726958871060,21.68365189,148.49,148.44,0.2521467]
[1726958871465,29.85630975,148.49,148.44,0.2521467]
[1726958872258,6.7359,148.46,148.44,0.2521467]
[1726958875475,6.7354,148.47,148.44,0.2521467]
[1726958880557,6.7358,148.46,148.44,0.2521467]
[1726958880962,6.7362,148.45,148.44,0.2521467]
[1726958881848,13.73484145,148.45,148.44,0.2521467]
[1726958884855,6.99864145,148.45,148.44,0.2521467]
[1726958885972,6.7358,148.46,148.44,0.2521467]
[1726958890763,6.7354,148.47,148.44,0.2521467]
[1726958895478,13.74613517,148.48,148.44,6.9887467]
[1726958901670,6.7354,148.47,148.44,0.2521467]
[1726958901869,6.7359,148.46,148.44,0.2521467]
[1726958902363,8.42036525,148.45,148.44,0.2521467]
[1726958902569,6.7362,148.45,148.44,0.2521467]
[1726958902788,8.42045255,148.45,148.44,0.2521467]
[1726958906091,6.7385,148.4,148.39,0.2521467]
[1726958912980,13.75263113,148.4,148.39,0.2521467]
[1726958920598,33.87812113,148.4,148.39,0.2521467]
[1726958920801,6.7403,148.36,148.35,0.2521467]
[1726958923298,13.75929756,148.36,148.35,0.2521467]
[1726958931042,7.01899756,148.36,148.35,0.2521467]
[1726958931319,36.847,148.4,148.35,0.2521467]
[1726958931320,6.7398,148.38,148.35,0.2521467]
[1726958931493,13.76400232,148.38,148.35,0.2521467]
[1726958938313,13.76400232,148.38,148.35,1.60015551]
[1726958938314,7.02420232,148.38,148.35,1.60015551]
[1726958938499,6.7391,148.39,148.35,6.9928467]
[1726958939214,13.76249228,148.4,148.35,6.9928467]
[1726958939514,7.02399228,148.4,148.36,7.2069083]
[1726958939693,6.7382,148.41,148.37,1.34778254]
[1726958940296,6.7382,148.41,148.37,8.08758254]
[1726958940502,6.7382,148.41,148.36,6.7402]
[1726958940802,6.7385,148.4,148.36,6.7402]
[1726958944315,6.7385,148.4,148.37,1.34780196]
[1726958944994,6.7381,148.41,148.38,1.34780403]
[1726958945420,13.76122999,148.42,148.38,8.08700403]
[1726958945606,13.76122999,148.42,148.38,6.7392]
[1726958947339,7.02352999,148.42,148.39,16.8474]
[1726958947521,100.10917574,148.49,148.4,23.776884]
[1726958947843,6.7363,148.45,148.41,8.0854382]
[1726958948019,6.7363,148.45,148.41,1.3474382]
[1726958948339,6.7363,148.45,148.4,30.515284]
[1726958948519,6.7367,148.44,148.4,30.515284]
[1726958949237,1.68428734,148.43,148.35,6.9031467]
[1726958949409,6.7403,148.36,148.35,0.2521467]
[1726958958742,13.76574612,148.36,148.35,0.2521467]
[1726958960831,33.76574612,148.36,148.35,0.2521467]
[1726958961030,35.451279,148.36,148.35,0.2521467]
[1726958961846,35.576769,148.36,148.35,0.2521467]
[1726958962226,35.576769,148.36,148.3,0.2521467]
[1726958962227,6.7417,148.33,148.3,0.2521467]
[1726958962430,8.42742694,148.33,148.3,0.2521467]
[1726958963337,6.7417,148.33,148.3,0.2521467]
[1726958969226,13.76867723,148.33,148.3,0.2521467]
[1726958969626,33.76867723,148.33,148.3,0.2521467]
[1726958972147,33.89416723,148.33,148.3,0.2521467]
[1726958972542,35.06887716,148.33,148.3,0.2521467]
[1726958979438,34.94338716,148.33,148.3,0.2521467]
[1726958980651,33.76867723,148.33,148.3,0.2521467]
[1726958995979,33.89416723,148.33,148.3,0.2521467]
[1726958996161,26.7426,148.31,148.3,0.2521467]
[1726958996363,28.42866944,148.31,148.3,0.2521467]
[1726958996955,35.45693903,148.31,148.3,0.2521467]
[1726958999750,33.77086959,148.31,148.3,0.2521467]
[1726959012078,13.77086959,148.31,148.3,0.2521467]
[1726959012279,35.45692919,148.31,148.3,0.2521467]
[1726959014074,33.77086959,148.31,148.3,0.2521467]
[1726959015371,13.77086959,148.31,148.3,0.2521467]
[1726959017979,7.02826959,148.31,148.3,0.2521467]
[1726959018386,6.7422,148.32,148.3,0.2521467]
[1726959018582,7.02504689,148.33,148.3,0.2521467]
[1726959018792,13.76674689,148.33,148.3,0.2521467]
[1726959020729,6.7422,148.32,148.3,0.2521467]
[1726959021813,7.02504689,148.33,148.3,0.2521467]
[1726959021814,7.02504689,148.33,148.3,52.3997307]
[1726959024986,7.02504689,148.33,148.31,1.47379457]
[1726959025208,7.02504689,148.33,148.32,30.644474]
[1726959025409,6.7395,148.38,148.32,23.902374]
[1726959025613,6.7395,148.38,148.33,1.34806224]
[1726959025925,6.7395,148.38,148.33,8.08966224]
[1726959026119,6.7395,148.38,148.33,6.7416]
[1726959029695,6.7395,148.38,148.34,1.34806679]
[1726959032317,6.7395,148.38,148.33,6.7416]
[1726959033199,6.7395,148.38,148.34,1.34806768]
[1726959035112,6.7395,148.38,148.34,8.08916768]
[1726959035311,6.7395,148.38,148.35,1.34797492]
[1726959036822,7.02338955,148.4,148.35,8.08867492]
[1726959036823,6.7391,148.39,148.35,8.08867492]
[1726959037294,20.0,148.42,148.36,6.7401]
[1726959037495,20.0,148.42,148.35,18.19907492]
[1726959037496,6.7381,148.41,148.37,6.7397]
[1726959037709,6.7381,148.41,148.36,30.642574]
[1726959040017,6.7381,148.41,148.37,6.7398]
[1726959040516,26.7377,148.42,148.37,6.7398]
[1726959040919,6.7377,148.42,148.37,6.7398]
[1726959043543,7.02242453,148.43,148.42,6.7376]
[1726959043698,7.02242453,148.43,148.41,23.5825]
[1726959043902,6.9880467,148.46,148.41,23.5825]
[1726959044399,6.9880467,148.46,148.42,0.53283727]
[1726959044820,6.9880467,148.46,148.42,1.347291]
[1726959045211,0.2521467,148.46,148.45,6.7362]
[1726959045429,0.2521467,148.46,148.43,16.8419]
[1726959048232,0.2521467,148.46,148.43,0.12549]
[1726959054620,8.67200309,148.46,148.42,23.776884]
[1726959054813,6.7362,148.45,148.42,23.776884]
[1726959055025,6.7362,148.45,148.41,23.776884]
[1726959057033,6.7362,148.45,148.41,30.514884]
[1726959058021,0.2521467,148.46,148.43,23.776884]
[1726959058336,0.2521467,148.46,148.44,1.347163]
[1726959059439,0.2521467,148.46,148.43,23.776884]
[1726959060021,8.67202751,148.46,148.42,23.776884]
[1726959060419,6.9880467,148.46,148.42,23.776884]
[1726959060640,6.9880467,148.46,148.42,8.08485498]
[1726959060817,6.9880467,148.46,148.42,6.7376]
[1726959062622,6.9880467,148.46,148.41,30.514784]
[1726959062823,6.9880467,148.46,148.42,0.12549]
[1726959063344,6.9880467,148.46,148.44,6.7366]
[1726959063345,0.2521467,148.46,148.44,6.7366]
[1726959063519,0.2521467,148.46,148.45,31.98562727]
[1726959066541,6.2377934,148.51,148.46,0.12549]
[1726959066747,6.2377934,148.51,148.47,1.3468911]
[1726959067044,6.7331,148.52,148.48,23.776884]
[1726959067217,6.7327,148.53,148.49,1.34673713]
[1726959067418,6.7322,148.54,148.49,1.34673713]
[1726959067619,6.7322,148.54,148.49,8.08093713]
[1726959068044,14.10459353,148.55,148.5,30.636274]
[1726959068253,7.37279353,148.55,148.51,8.07992365]
[1726959068428,0.352533,148.55,148.51,6.7334]
[1726959068627,0.352533,148.55,148.5,30.636274]
[1726959069337,7.084333,148.55,148.5,30.636274]
[1726959070255,7.084333,148.55,148.51,1.34650489]
[1726959070821,7.084333,148.55,148.5,30.636274]
[1726959075953,6.7335,148.51,148.47,6.7349]
[1726959076142,6.7335,148.51,148.45,22.9554]
[1726959077153,6.734,148.5,148.45,22.9554]
[1726959077745,6.7345,148.49,148.45,16.8403]
[1726959082944,6.7359,148.46,148.42,23.902374]
[1726959083261,6.7354,148.47,148.42,23.902374]
[1726959084260,6.7354,148.47,148.43,6.7371]
[1726959085164,6.7354,148.47,148.42,30.639474]
[1726959086246,8.41985171,148.46,148.42,23.902374]
[1726959086437,6.7358,148.46,148.41,23.5827]
[1726959087544,6.7358,148.46,148.42,6.7375]
[1726959087958,6.7353,148.47,148.43,1.34733049]
[1726959088882,6.7353,148.47,148.43,8.08433049]
[1726959089047,6.7353,148.47,148.43,6.737]
[1726959090962,6.7353,148.47,148.42,6.7375]
[1726959091451,8.41934242,148.47,148.42,6.7375]
[1726959092274,7.91934242,148.47,148.42,6.7375]
[1726959093174,6.2353,148.47,148.42,6.7375]
[1726959099080,6.7363,148.45,148.41,23.5827]
[1726959099258,6.737,148.44,148.4,15.2849]
[1726959099459,6.737,148.44,148.39,0.2521467]
[1726959100386,6.737,148.44,148.39,6.9907467]
[1726959104198,6.7376,148.43,148.39,24.0290307]
[1726959104398,6.7367,148.44,148.39,30.7679307]
[1726959104702,8.42110846,148.44,148.39,30.7679307]
[1726959105882,6.7367,148.44,148.4,6.7384]
[1726959111810,8.42110792,148.44,148.4,6.7384]
[1726959112537,6.7367,148.44,148.4,6.7384]
[1726959114520,7.02060314,148.45,148.41,6.7377]
[1726959114808,7.02060314,148.45,148.42,6.7375]
[1726959115008,6.7359,148.46,148.42,6.7375]
[1726959115892,6.7359,148.46,148.41,30.640374]
[1726959116219,8.42061645,148.45,148.41,30.514884]
[1726959116521,6.7364,148.45,148.41,30.514884]
[1726959119210,6.7359,148.46,148.41,30.514884]
[1726959119517,20.0,148.47,148.43,16.8428]
[1726959120021,20.0,148.47,148.43,23.5799]
[1726959120627,6.7354,148.47,148.43,23.5799]
[1726959121503,6.7354,148.47,148.43,16.8428]
[1726959121919,8.41984872,148.46,148.42,6.7375]
[1726959122618,8.41984872,148.46,148.41,46.903784]
[1726959123012,1.68421029,148.45,148.41,46.903784]
[1726959123607,8.42081029,148.45,148.41,23.776884]
[1726959123807,6.7366,148.45,148.41,23.776884]
[1726959125319,6.7366,148.45,148.41,30.514884]
[1726959127802,20.0,148.48,148.39,0.2521467]
[1726959127803,1.68426188,148.44,148.39,0.2521467]
[1726959128008,6.7379,148.42,148.39,0.2521467]
[1726959128205,6.7372,148.43,148.39,0.2521467]
[1726959128405,6.2243,148.46,148.39,17.0990467]
[1726959128632,20.0,148.45,148.43,6.7368]
[1726959128932,20.0,148.45,148.42,23.5807]
[1726959129425,20.0,148.45,148.42,16.8432]
[1726959129629,6.7358,148.46,148.42,16.8432]
[1726959131715,8.42007828,148.46,148.42,16.8432]
[1726959132121,6.7358,148.46,148.42,16.8432]
[1726959136743,13.74761405,148.47,148.42,23.5805]
[1726959136948,13.74761405,148.47,148.42,16.8432]
[1726959138450,13.74761405,148.47,148.43,6.7371]
[1726959141063,6.7359,148.46,148.42,23.5808]
[1726959141221,8.41994412,148.46,148.42,23.5808]
[1726959142459,6.7359,148.46,148.42,23.5808]
[1726959143851,13.74771405,148.47,148.43,1.34729654]
[1726959144055,6.7355,148.47,148.43,8.08429654]
[1726959145347,6.7355,148.47,148.43,6.737]
[1726959145745,6.7355,148.47,148.42,16.8432]
[1726959145953,6.7355,148.47,148.42,23.5807]
[1726959156563,20.0,148.47,148.44,22.831]
[1726959156770,6.98509147,148.48,148.45,31.98563543]
[1726959157065,20.0,148.5,148.46,6.7354]
[1726959157365,6.7335,148.51,148.47,30.512184]
[1726959157745,6.7335,148.51,148.48,1.34681735]
[1726959157940,6.7335,148.51,148.47,30.512184]
[1726959160862,13.71791643,148.52,148.48,1.34686175]
[1726959161058,13.71791643,148.52,148.49,23.776884]
[1726959161271,6.98471643,148.52,148.49,23.776884]
[1726959161571,20.0,148.52,148.49,23.776884]
[1726959162476,20.0,148.52,148.49,40.612884]
[1726959162777,26.7325,148.54,148.49,47.347184]
[1726959163275,26.7325,148.54,148.49,63.441584]
[1726959170352,6.7325,148.54,148.5,1.47209944]
[1726959170563,6.7325,148.54,148.5,8.20599944]
[1726959170769,6.7325,148.54,148.49,44.91328344]
[1726959172263,6.7325,148.54,148.5,6.7339]
[1726959174787,6.7325,148.54,148.5,7.57830192]
[1726959177188,6.7325,148.54,148.5,6.7339]
[1726959178565,6.7325,148.54,148.51,0.84440438]
[1726959180566,6.7325,148.54,148.5,6.7339]
[1726959182585,27.084333,148.55,148.51,6.7335]
[1726959182898,27.084333,148.55,148.52,0.84420782]
[1726959186168,0.352533,148.55,148.52,7.57720782]
[1726959186365,0.352533,148.55,148.54,6.7321]
[1726959186672,0.352533,148.55,148.53,23.5638]
[1726959187594,0.352533,148.55,148.52,7.576622]
[1726959187893,0.352533,148.55,148.52,6.733]
[1726959188269,0.352533,148.55,148.53,0.8436231]
[1726959188592,0.352533,148.55,148.53,17.6750231]
[1726959188884,0.352533,148.55,148.53,23.5639]
[1726959189886,0.352533,148.55,148.54,0.84350397]
[1726959190484,0.352533,148.55,148.54,47.89258294]
[1726959190789,0.352533,148.55,148.54,47.230564]
[1726959192492,0.352533,148.55,148.54,48.07290357]
[1726959193999,0.3538344,148.6,148.59,6.7299]
[1726959194294,0.3538344,148.6,148.59,31.47398261]
[1726959194464,0.3538344,148.6,148.59,30.632274]
[1726959195091,0.3538344,148.6,148.58,23.5552]
[1726959203903,0.3538344,148.6,148.59,0.96743502]
[1726959204106,0.3538344,148.6,148.59,31.47419016]
[1726959206404,0.3538344,148.6,148.59,31.59946597]
[1726959207095,0.3538344,148.6,148.59,48.06962817]
[1726959207821,0.3538344,148.6,148.59,59.54106823]
[1726959208409,0.3538344,148.6,148.59,60.38197559]
[1726959208603,0.3538344,148.6,148.59,59.54106823]
[1726959210806,0.3538344,148.6,148.59,60.38186833]
[1726959213016,0.3538344,148.6,148.59,59.54106823]
[1726959213999,0.3538344,148.6,148.59,60.38179163]
[1726959215018,0.3538344,148.6,148.59,59.54106823]
[1726959215321,0.3538344,148.6,148.59,47.228364]
[1726959219509,0.3538344,148.6,148.59,80.877964]
[1726959229624,0.3538344,148.6,148.59,94.03128056]
[1726959230629,0.3538344,148.6,148.59,93.19066823]
[1726959232132,0.3538344,148.6,148.59,6.7299]
[1726959233343,0.3538344,148.6,148.59,31.5991936]
[1726959233935,0.3538344,148.6,148.59,30.757764]
[1726959236433,0.3538344,148.6,148.59,6.7299]
[1726959237241,0.3538344,148.6,148.59,7.57146312]
[1726959238424,0.3538344,148.6,148.59,31.59932712]
[1726959238926,0.3538344,148.6,148.59,30.757764]
[1726959239240,0.3538344,148.6,148.59,31.5993285]
[1726959239727,0.3538344,148.6,148.59,30.757764]
[1726959240330,0.3538344,148.6,148.59,31.59932848]
[1726959240531,0.3538344,148.6,148.59,30.757764]
[1726959244719,0.3538344,148.6,148.59,24.027864]
[1726959245131,0.3538344,148.6,148.59,30.757764]
[1726959245443,0.3538344,148.6,148.59,30.632274]
[1726959250659,0.3538344,148.6,148.59,6.85539]
[1726959251573,0.3538344,148.6,148.59,6.7299]
[1726959252659,0.3538344,148.6,148.59,31.59982057]
[1726959252953,0.3538344,148.6,148.59,30.757764]
[1726959259961,0.3538344,148.6,148.59,31.59910393]
[1726959260647,0.3538344,148.6,148.59,30.757764]
[1726959263369,0.3538344,148.6,148.59,31.59910726]
[1726959265664,0.3538344,148.6,148.59,30.757764]
[1726959267456,0.3538344,148.6,148.59,31.0959928]
[1726959268456,0.3538344,148.6,148.59,30.757764]
[1726959270253,0.3538344,148.6,148.59,31.59912406]
[1726959270649,0.3538344,148.6,148.59,30.757764]
[1726959271570,0.3538344,148.6,148.59,31.59912285]
[1726959271959,0.3538344,148.6,148.59,30.757764]
[1726959272351,0.3538344,148.6,148.59,31.59912485]
[1726959273061,0.3538344,148.6,148.59,30.757764]
[1726959275468,0.3538344,148.6,148.59,31.5990966]
[1726959276265,0.3538344,148.6,148.59,30.757764]
[1726959276665,0.3538344,148.6,148.59,31.59909675]
[1726959277062,0.3538344,148.6,148.59,30.757764]
[1726959281063,0.3538344,148.6,148.59,30.632274]
[1726959281253,0.3538344,148.6,148.58,16.8249]
[1726959281668,0.3538344,148.6,148.58,23.5549]
[1726959283168,0.3538344,148.6,148.59,6.7299]
[1726959283374,0.3538344,148.6,148.59,6.85539]
[1726959283769,0.3538344,148.6,148.59,7.69723134]
[1726959289178,0.3538344,148.6,148.59,31.47411534]
[1726959289784,0.3538344,148.6,148.59,30.632274]
[1726959296179,0.3538344,148.6,148.59,31.59952794]
[1726959297685,0.3538344,148.6,148.59,30.757764]
[1726959302262,0.3538344,148.6,148.59,30.632274]
[1726959309487,0.3538344,148.6,148.58,16.8249]
[1726959310468,0.3538344,148.6,148.57,6.7307]
[1726959310967,0.3538344,148.6,148.58,0.12549]
[1726959311670,7.0832344,148.6,148.56,6.7312]
[1726959311976,0.3538344,148.6,148.56,6.7312]
[1726959313389,0.3538344,148.6,148.57,6.7307]
[1726959314383,0.3538344,148.6,148.56,30.633474]
[1726959315279,7.0836344,148.6,148.55,23.5605]
[1726959315478,1.68257703,148.59,148.55,23.5605]
[1726959315686,6.73,148.59,148.55,16.8288]
[1726959318976,8.4130643,148.58,148.52,16.832]
[1726959319273,16.4326,148.57,148.52,16.832]
[1726959319472,1.6829872,148.56,148.52,16.832]
[1726959319995,8.4145872,148.56,148.52,16.832]
[1726959321097,6.7326,148.53,148.45,6.5661]
[1726959321291,6.7326,148.53,148.49,6.7343]
[1726959321472,6.7322,148.54,148.5,6.7339]
[1726959321667,13.3407,148.55,148.5,6.7339]
[1726959321873,6.7322,148.54,148.5,6.7339]
[1726959323596,6.6089,148.55,148.51,23.5673]
[1726959323899,15.02388836,148.55,148.51,16.8338]
[1726959326002,6.733,148.53,148.48,16.8367]
[1726959326344,8.41653446,148.52,148.48,16.8367]
[1726959326475,6.7331,148.52,148.48,16.8367]
[1726959327394,6.7331,148.52,148.48,23.5715]
[1726959327990,6.6089,148.55,148.47,0.12549]
[1726959327991,1.68342775,148.51,148.47,0.12549]
[1726959328288,1.68342775,148.51,148.45,0.12549]
[1726959328494,6.7339,148.51,148.45,0.12549]
[1726959329408,6.7339,148.51,148.47,6.7352]
[1726959330601,8.41748868,148.51,148.47,6.7352]
[1726959331793,6.7339,148.51,148.47,6.7352]
[1726959332003,23.1657,148.52,148.47,6.7352]
[1726959332501,13.66505569,148.53,148.48,0.97087637]
[1726959333281,6.93245569,148.53,148.5,0.12549]
[1726959333493,15.02413707,148.55,148.5,0.12549]
[1726959333699,15.02413707,148.55,148.5,6.85899]